fUSD/lending_fUSD_20250811
["ID","MTS","AMOUNT","RATE_DAILY","PERIOD"]
[378521459,1754893844229,-153.0,0.00021918,2]
[378521460,1754893844239,-150.0,0.00021918,2]
[378521461,1754893844250,-153.0,0.00021918,2]
[378521462,1754893844262,-153.0,0.00021918,2]
[378521463,1754893844272,-153.0,0.00021918,2]
[378521464,1754893844281,-153.0,0.00021918,2]
[378521465,1754893844292,-519.98931472,0.00021918,2]
[378521466,1754893844301,-1168.85,0.0002192,2]
[378521467,1754893844311,-199.41,0.00021922,2]
[378521468,1754893844322,-3292.0,0.0002198,2]
[378521469,1754893844331,-15632.92386014,0.0002199,2]
[378521470,1754893844341,-1313.78,0.0002199,2]
[378521471,1754893844350,-5000.0,0.00021999,2]
[378521472,1754893844360,-37266.23,0.00022,2]
[378521473,1754893844370,-360408.76568766,0.00022,4]
[378521474,1754893844379,-20405.42,0.00022,7]
[378521475,1754893844388,-777.2415269,0.00022,7]
[378521476,1754893844398,-500.0,0.00022,2]
[378521477,1754893844407,-210.6,0.00022,2]
[378521478,1754893844416,-1047.52,0.00022,7]
[378521479,1754893844427,-501.84,0.00022,7]
[378521480,1754893844437,-872.37605,0.0002201,2]
[378521481,1754893844448,-2368.52,0.00022062,2]
[378521482,1754893844457,-235.09376092,0.0002211,2]
[378521483,1754893844466,-16328.02581697,0.0002223,2]
[378521484,1754893844476,-75827.28897778,0.0002223,2]
[378521485,1754893844485,-257.91778498,0.00022301,2]
[378521486,1754893844494,-693.67,0.00022314,2]
[378521487,1754893844504,-600.0,0.00022322,2]
[378521488,1754893844513,-164.15,0.00022322,2]
[378521489,1754893844523,-1845.18,0.00022553,2]
[378521490,1754893844532,-600.0,0.00022581,2]
[378521491,1754893844541,-164.15,0.00022581,2]
[378521492,1754893844551,-219.56,0.00022603,2]
[378521493,1754893844560,-160.0,0.00022629,2]
[378521494,1754893844569,-1426.47372523,0.00022629,2]
[378521495,1754893844578,-529.42379005,0.00022629,2]
[378521496,1754893844588,-257.63,0.00022684,2]
[378521497,1754893844597,-511.55034318,0.0002271,2]
[378521498,1754893844606,-2100.3,0.00022765,2]
[378521499,1754893844616,-168.0,0.00022795,8]
[378521500,1754893844636,-551.59817973,0.00022832,2]
[378521501,1754893844646,-600.0,0.00022841,2]
[378521502,1754893844656,-164.15,0.00022841,2]
[378521503,1754893844665,-1000.0,0.0002285,2]
[378521504,1754893844675,-150.0,0.00022851,2]
[378521505,1754893844684,-150.0,0.00022851,2]
[378521506,1754893844693,-150.0,0.00022851,2]
[378521507,1754893844705,-150.0,0.00022851,2]
[378521508,1754893844715,-150.0,0.00022851,2]
[378521509,1754893844725,-150.0,0.00022851,2]
[378521510,1754893844735,-150.0,0.00022851,2]
[378521511,1754893844745,-150.0,0.00022851,2]
[378521512,1754893844754,-150.0,0.00022851,2]
[378521513,1754893844764,-150.0,0.00022851,2]
[378521514,1754893844773,-181.39234776,0.00022877,2]
[378521515,1754893844784,-763.75173086,0.000229,2]
[378521516,1754893844793,-1295.0,0.00022932,2]
[378521517,1754893844802,-565.0,0.00022932,2]
[378521518,1754893844811,-2027.0,0.00022932,2]
[378521519,1754893844821,-958.0,0.00022932,2]
[378521520,1754893844831,-1654.0,0.00022932,2]
[378521521,1754893844840,-1171.0,0.00022932,2]
[378521522,1754893844850,-893.0,0.00022932,2]
[378521523,1754893844859,-3367.0,0.00022932,2]
[378521524,1754893844869,-810.0,0.00022932,2]
[378521525,1754893844878,-957.0,0.00022932,2]
[378521526,1754893844888,-842.86497659,0.00023,3]
[378521527,1754893844897,-430.09602902,0.00023,2]
[378521528,1754893844907,-4000.0,0.00023,4]
[378521529,1754893844917,-500.0,0.0002305,2]
[378521530,1754893844926,-206.58278267,0.0002305,2]
[378521531,1754893844936,-187.74625138,0.000231,2]
[378521532,1754893844946,-184.94266358,0.000231,2]
[378521533,1754893844956,-209.57,0.00023114,2]
[378521534,1754893844966,-500.0,0.0002316,2]
[378521535,1754893844975,-500.0,0.0002316,2]
[378521536,1754893844985,-362.06893856,0.0002316,2]
[378521539,1754893845675,-138.52689808,0.0002316,2]
[378521540,1754893845684,-576.59179543,0.0002316,2]
[378521541,1754893845694,-500.0,0.0002316,2]
[378521542,1754893845706,-500.0,0.0002316,2]
[378521543,1754893845716,-500.0,0.0002316,2]
[378521544,1754893845726,-500.0,0.0002316,2]
[378521545,1754893845735,-161.8121096,0.0002316,2]
[378521546,1754893846019,-151.0,0.00017769,2]
[378521547,1754893846028,-1000.0,0.00017815,2]
[378521548,1754893846037,-151.99,0.000188,2]
[378521549,1754893846046,-151.99,0.000188,2]
[378521550,1754893846055,-151.99,0.000188,2]
[378521551,1754893846064,-151.99,0.000188,2]
[378521552,1754893846073,-338.1878904,0.0002316,2]
[378521553,1754893846082,-500.0,0.0002316,2]
[378521554,1754893846091,-501.35361219,0.0002316,2]
[378521555,1754893846100,-500.0,0.0002316,2]
[378521556,1754893846109,-500.0,0.0002316,2]
[378521557,1754893846119,-501.2657223,0.0002316,2]
[378521558,1754893846129,-500.0,0.0002316,2]
[378521559,1754893846138,-51011.29305925,0.000232,2]
[378521560,1754893846147,-1047.52,0.000232,7]
[378521561,1754893846159,-501.84,0.000232,7]
[378521562,1754893846170,-175.74,0.00023254,2]
[378521563,1754893846179,-199.41,0.0002326,2]
[378521564,1754893846191,-167.98,0.00023395,2]
[378521565,1754893846200,-3853.67444129,0.000234,2]
[378521566,1754893847320,-888.0,0.00019698,3]
[378521567,1754893847329,-1253.0,0.00019932,2]
[378521568,1754893847339,-173.8440469,0.0002,2]
[378521569,1754893847348,-888.0,0.00020351,3]
[378521570,1754893847357,-566.32096097,0.00022591,3]
[378521571,1754893847369,-1209.67903903,0.00022591,3]
[378521572,1754893847379,-6118.12096097,0.000234,2]
[378521573,1754893847975,-2095.57785053,0.000179,2]
[378521574,1754893847986,-888.0,0.00021052,3]
[378521575,1754893847995,-888.0,0.00021965,3]
[378521576,1754893848005,-888.0,0.00022562,3]
[378521577,1754893848015,-1253.0,0.00022932,2]
[378521578,1754893848024,-1776.0,0.00023292,3]
[378521579,1754893848034,-3153.70612418,0.000234,2]
[378521588,1754894103418,182.0,0.00023125,120]
[378521589,1754894181195,811.48,0.00025487,120]
[378521596,1754894399127,279.67,0.00013699,2]
[378521597,1754894406696,152.53,0.0001756,7]
[378521618,1754895006350,170.0,0.000166,7]
[378521619,1754895006372,185.14139202,0.000166,7]
[378521656,1754895032469,-200.0,0.00016634,2]
[378521658,1754895032478,-1000.0,0.00016669,2]
[378521660,1754895032487,-1000.0,0.00016697,5]
[378521662,1754895032496,-95.10590494,0.00016709,2]
[378521665,1754895032516,-404.89409506,0.00016709,2]
[378521667,1754895032525,-73.04520823,0.00016709,2]
[378521669,1754895032537,-426.95479177,0.00016709,2]
[378521671,1754895032546,-300.0,0.00016709,2]
[378521673,1754895032555,-1200.0,0.00016709,2]
[378521675,1754895032565,-300.0,0.0001671,2]
[378521677,1754895032574,-300.0,0.0001671,2]
[378521679,1754895032584,-250.0,0.0001671,2]
[378521681,1754895032594,-2500.0,0.0001671,2]
[378521683,1754895032603,-1000.0,0.00016733,5]
[378521685,1754895032613,-1000.0,0.00016734,5]
[378521687,1754895032622,-300.0,0.00016755,2]
[378521689,1754895032631,-250.0,0.00016755,2]
[378521691,1754895032640,-2500.0,0.00016755,2]
[378521693,1754895032650,-2500.0,0.00016821,3]
[378521696,1754895032659,-2500.0,0.0001683,3]
[378521698,1754895032669,-616.0,0.00016837,2]
[378521700,1754895032678,-2500.0,0.00016838,3]
[378521702,1754895032687,-168.01,0.00016844,2]
[378521704,1754895032697,-2500.0,0.00016847,3]
[378521706,1754895032706,-457.87080987,0.00016847,3]
[378521708,1754895032715,-211.73953792,0.00016847,3]
[378521710,1754895032724,-2500.0,0.00016856,3]
[378521712,1754895032733,-1376.81,0.00016862,2]
[378521714,1754895032742,-2500.0,0.00016865,3]
[378521716,1754895032752,-2500.0,0.00016874,3]
[378521718,1754895032761,-2500.0,0.00016882,3]
[378521720,1754895032771,-2396.62,0.00016885,2]
[378521722,1754895032781,-2500.0,0.00016891,3]
[378521724,1754895032790,-1596.77313056,0.00016898,2]
[378521726,1754895032802,-677.31590528,0.00016898,2]
[378521728,1754895032814,-476.91096416,0.00016898,2]
[378521730,1754895032823,-1321.4661,0.000169,2]
[378521732,1754895032833,-3653.2924,0.000169,2]
[378521734,1754895032842,-2500.0,0.000169,3]
[378521736,1754895032852,-250.0,0.0001696,2]
[378521738,1754895032862,-169.1468356,0.00016999,2]
[378521740,1754895032873,-500.0,0.00017163,2]
[378521742,1754895032882,-550.0,0.00017288,2]
[378521744,1754895032891,-151.0,0.00017289,2]
[378521746,1754895032901,-1199.20597015,0.00017289,2]
[378521748,1754895032911,-151.0,0.00017289,2]
[378521750,1754895032920,-185.6407064,0.00017289,2]
[378521752,1754895032930,-5185.1854715,0.00017299,2]
[378521754,1754895032940,-6705.02364548,0.00017299,2]
[378521756,1754895032952,-888.0,0.00017299,2]
[378521759,1754895032968,-1896.459565,0.00017299,2]
[378521761,1754895032979,-417.49656767,0.00017299,2]
[378521763,1754895032991,-351.96022185,0.00017299,2]
[378521765,1754895033001,-169.23,0.00017346,2]
[378521767,1754895033011,-833.69619466,0.00017493,2]
[378521769,1754895033023,-311.93186917,0.00017526,2]
[378521771,1754895033033,-160.0,0.00017526,2]
[378521773,1754895033043,-2183.31810187,0.00017526,2]
[378521775,1754895033054,-600.0,0.00017526,2]
[378521777,1754895033065,-500.0,0.00017526,2]
[378521779,1754895033075,-500.0,0.00017526,2]
[378521781,1754895033084,-500.0,0.00017526,2]
[378521783,1754895033094,-500.0,0.00017526,2]
[378521785,1754895033106,-500.0,0.00017526,2]
[378521787,1754895033116,-500.0,0.00017526,2]
[378521789,1754895033125,-237.81145587,0.00017526,2]
[378521796,1754895033182,-262.18854413,0.00017526,2]
[378521798,1754895033192,-243.4695377,0.00017526,2]
[378521802,1754895033217,-256.5304623,0.00017526,2]
[378521804,1754895033226,-121.48249198,0.00017526,2]
[378521807,1754895033250,-100.93950802,0.00017526,2]
[378521809,1754895033259,-500.0,0.00017526,2]
[378521811,1754895033269,-500.0,0.00017526,2]
[378521813,1754895033278,-500.0,0.00017526,2]
[378521815,1754895033288,-201.27626484,0.00017526,2]
[378521817,1754895033297,-151.0,0.00017526,2]
[378521819,1754895033306,-231.28369723,0.00017526,2]
[378521821,1754895033316,-250.0,0.00017526,2]
[378521823,1754895033326,-250.0,0.00017526,2]
[378521825,1754895033335,-202.38327064,0.00017526,2]
[378521827,1754895033345,-250.0,0.00017526,2]
[378521829,1754895033355,-250.0,0.00017526,2]
[378521831,1754895033365,-151.0,0.00017526,2]
[378521843,1754895033477,-174.22710948,0.00017526,2]
[378521845,1754895033487,-346.92554585,0.00017526,2]
[378521847,1754895033505,-2264.10087164,0.00017581,2]
[378521849,1754895033519,-600.0,0.00017585,2]
[378521850,1754895033529,-350.9,0.00017585,2]
[378521851,1754895033538,-2347.87260389,0.00017636,2]
[378521852,1754895033547,-2434.74389024,0.00017691,2]
[378521853,1754895033557,-339.51,0.00017728,2]
[378521854,1754895033567,-9034.21,0.00017728,5]
[378521855,1754895033576,-19187.93,0.00017728,2]
[378521856,1754895033586,-150.99,0.00017728,2]
[378521857,1754895033595,-299.99,0.00017728,4]
[378521858,1754895033604,-999.99,0.00017728,2]
[378521859,1754895033615,-150.99,0.00017728,2]
[378521860,1754895033624,-2524.82941417,0.00017746,2]
[378521861,1754895033634,-151.0,0.00017759,2]
[378521862,1754895033643,-2618.2481025,0.00017801,2]
[378521863,1754895033654,-2715.12328229,0.00017856,2]
[378521864,1754895033663,-3167.8494,0.00017875,2]
[378521865,1754895033673,-972.3602,0.00017875,2]
[378521866,1754895033683,-2815.58284374,0.00017911,2]
[378521867,1754895033692,-211.0,0.00017912,2]
[378521868,1754895033703,-2919.75940895,0.00017966,2]
[378521869,1754895033712,-23900.0,0.00017975,2]
[378521870,1754895033722,-3027.79050709,0.00018021,2]
[378521871,1754895033731,-600.0,0.00018074,2]
[378521872,1754895033741,-151.0,0.00018074,2]
[378521873,1754895033750,-3139.81875585,0.00018076,2]
[378521874,1754895033759,-224.0,0.00018123,2]
[378521875,1754895033768,-3255.99204981,0.00018131,2]
[378521876,1754895033778,-1990.79895807,0.00018156,2]
[378521877,1754895033787,-1687.67767064,0.00018186,2]
[378521878,1754895033803,-747.58213346,0.00018186,2]
[378521884,1754895038291,-500.0,0.0001758,2]
[378521885,1754895038300,-176.04679345,0.0001758,2]
[378521886,1754895038310,-451.18330931,0.0001758,2]
[378521887,1754895038319,-941.20395156,0.00018186,2]
[378521888,1754895038328,-224.0,0.00018188,2]
[378521889,1754895038338,-487.56594568,0.00018241,2]
[378521890,1754895038349,-1365.98578124,0.00018241,2]
[378521891,1754895038361,-599.45508823,0.00018241,2]
[378521892,1754895038372,-400.0,0.00018241,2]
[378522023,1754895040007,-298.88221199,0.00016608,2]
[378522025,1754895040017,-648.38609947,0.00018241,2]
[378522027,1754895040029,-544.40698861,0.00018246,2]
[378522029,1754895040039,-420.0,0.00018255,2]
[378522031,1754895040049,-224.0,0.00018257,2]
[378522033,1754895040059,-150.0,0.00018264,2]
[378522036,1754895040070,-500.0,0.00018264,2]
[378522038,1754895040080,-150.0,0.00018264,2]
[378522039,1754895040091,-150.0,0.00018264,2]
[378522042,1754895040103,-150.0,0.00018264,2]
[378522044,1754895040112,-150.0,0.00018264,2]
[378522045,1754895040122,-126.84909033,0.00018264,2]
[378522051,1754895040162,-373.15090967,0.00018264,2]
[378522053,1754895040172,-150.0,0.00018264,2]
[378522055,1754895040183,-381.57015915,0.00018264,2]
[378522422,1754895043767,-318.42984085,0.00018264,2]
[378522424,1754895043777,-865.0,0.00018264,2]
[378522426,1754895043788,-224.0,0.00018287,2]
[378522429,1754895043798,-246.47492142,0.00018287,2]
[378522435,1754895043849,-253.52507858,0.00018287,2]
[378522437,1754895043858,-150.0,0.00018287,2]
[378522439,1754895043867,-47.46001548,0.00018287,2]
[378522445,1754895043914,-95.94367004,0.00018287,2]
[378522460,1754895044053,-6.59631448,0.00018287,2]
[378522462,1754895044062,-150.0,0.00018287,2]
[378522464,1754895044074,-150.0,0.00018287,2]
[378522466,1754895044083,-500.0,0.00018287,2]
[378522468,1754895044094,-201.30957663,0.00018287,2]
[378522471,1754895044108,-822.05436968,0.00018287,2]
[378522667,1754895045934,-52.63605369,0.00018287,2]
[378522669,1754895045944,-500.0,0.00018287,2]
[378522671,1754895045954,-500.0,0.00018287,2]
[378522673,1754895045965,-478.29119955,0.00018296,2]
[378522675,1754895045974,-2500.0,0.00018297,2]
[378522677,1754895045984,-224.0,0.00018309,2]
[378522679,1754895045993,-224.0,0.00018313,2]
[378522681,1754895046002,-1680.0,0.00018346,2]
[378522683,1754895046012,-1000.0,0.00018354,5]
[378522685,1754895046027,-300.0,0.00018354,2]
[378522687,1754895046036,-300.0,0.00018354,2]
[378522689,1754895046046,-250.0,0.00018354,2]
[378522691,1754895046057,-2500.0,0.00018354,2]
[378522693,1754895046068,-1000.0,0.00018354,5]
[378522695,1754895046077,-4017.48494701,0.00018384,2]
[378522697,1754895046087,-300.0,0.00018394,2]
[378522699,1754895046097,-7436.48,0.00018428,2]
[378522701,1754895046108,-12833.7,0.00018428,2]
[378522703,1754895046118,-556.13822859,0.00018433,2]
[378522705,1754895046128,-1000.0,0.00018433,2]
[378522707,1754895046137,-1120.8652,0.00018433,2]
[378522709,1754895046146,-2371.8835066,0.00018433,2]
[378522715,1754895046194,-128.1164934,0.00018433,2]
[378522723,1754895046302,-224.0,0.00018457,2]
[378522724,1754895046312,-224.0,0.00018463,2]
[378522725,1754895046321,-180.42,0.00018481,2]
[378522726,1754895046331,-2316.54013232,0.00018485,2]
[378522727,1754895046340,-224.0,0.00018489,2]
[378522728,1754895046349,-811.48,0.00018536,2]
[378522729,1754895046358,-162.0836138,0.00018538,2]
[378522730,1754895046368,-150.0,0.00018538,2]
[378522732,1754895046378,-150.0,0.00018538,2]
[378522734,1754895046387,-500.0,0.00018538,2]
[378522736,1754895046397,-700.0,0.00018538,2]
[378522738,1754895046407,-865.0,0.00018538,2]
[378522740,1754895046416,-500.0,0.00018543,2]
[378522742,1754895046425,-500.0,0.00018543,2]
[378522744,1754895046434,-502.628276,0.00018543,2]
[378522746,1754895046443,-500.0,0.00018561,2]
[378522748,1754895046452,-150.0,0.00018561,2]
[378522750,1754895046462,-150.0,0.00018561,2]
[378522752,1754895046471,-150.0,0.00018561,2]
[378522754,1754895046482,-239.31115696,0.00018561,2]
[378522756,1754895046491,-500.0,0.00018561,2]
[378522758,1754895046500,-1076.0,0.00018561,2]
[378522760,1754895046509,-500.0,0.00018561,2]
[378522762,1754895046518,-500.0,0.00018561,2]
[378522764,1754895046528,-1990.79895795,0.00018598,2]
[378522766,1754895046536,-510.26640398,0.00018617,2]
[378522768,1754895046545,-600.0,0.00018622,2]
[378522770,1754895046555,-1480.13,0.00018648,2]
[378522771,1754895046565,-500.0,0.00018657,2]
[378522774,1754895046574,-405.8711316,0.00018657,2]
[378522776,1754895046583,-504.48052608,0.00018657,2]
[378522778,1754895046593,-1243.57659104,0.00018658,2]
[378522779,1754895046602,-1000.0,0.00018752,2]
[378522780,1754895046611,-224.0,0.00018767,2]
[378522782,1754895046620,-224.0,0.00018779,2]
[378522784,1754895046630,-150.0,0.00018779,2]
[378522786,1754895046639,-500.0,0.00018779,2]
[378522788,1754895046649,-500.0,0.00018779,2]
[378522790,1754895046658,-500.0,0.00018779,2]
[378522792,1754895046667,-154.59392805,0.00018779,2]
[378522794,1754895046677,-500.0,0.00018779,2]
[378522796,1754895046686,-150.0,0.00018779,2]
[378522798,1754895046695,-150.0,0.00018779,2]
[378522800,1754895046705,-150.98708686,0.00018779,2]
[378522801,1754895046714,-150.0,0.00018779,2]
[378522803,1754895046723,-162.49004194,0.00018779,2]
[378522805,1754895046732,-500.0,0.00018779,2]
[378522807,1754895046741,-500.0,0.00018779,2]
[378522809,1754895046752,-500.0,0.00018779,2]
[378522811,1754895046761,-151.597239,0.00018779,2]
[378522813,1754895046771,-500.0,0.00018779,2]
[378522815,1754895046780,-150.0,0.00018779,2]
[378522817,1754895046790,-500.0,0.00018779,2]
[378522819,1754895046799,-150.0,0.00018779,2]
[378522821,1754895046810,-158.47627965,0.00018779,2]
[378522823,1754895046819,-500.0,0.00018779,2]
[378522825,1754895046828,-150.0,0.00018779,2]
[378522827,1754895046837,-500.0,0.00018779,2]
[378522829,1754895046846,-500.0,0.00018779,2]
[378522831,1754895046855,-500.0,0.00018779,2]
[378522833,1754895046864,-150.11084682,0.00018779,2]
[378522835,1754895046873,-153.08,0.00018798,2]
[378522837,1754895046883,-150.0,0.00018812,2]
[378522839,1754895046892,-150.0,0.00018812,2]
[378522841,1754895046901,-500.0,0.00018812,2]
[378522843,1754895046910,-700.0,0.00018812,2]
[378522844,1754895046920,-865.0,0.00018812,2]
[378522846,1754895046930,-224.0,0.00018823,2]
[378522848,1754895046940,-500.0,0.00018835,2]
[378522850,1754895046949,-154.56220658,0.00018835,2]
[378522852,1754895046958,-150.0,0.00018835,2]
[378522854,1754895046968,-150.0,0.00018835,2]
[378522856,1754895046977,-266.06460255,0.00018835,2]
[378522858,1754895046987,-1076.0,0.00018835,2]
[378522860,1754895046997,-500.0,0.00018835,2]
[378522862,1754895047006,-500.0,0.00018835,2]
[378522864,1754895047022,-224.0,0.00018888,2]
[378522866,1754895047042,-160.0,0.00018895,2]
[378522868,1754895047060,-239.84119403,0.00018895,2]
[378522870,1754895047069,-359.76179104,0.00018895,2]
[378522872,1754895047078,-1000.0,0.000189,2]
[378522874,1754895047087,-1000.0,0.000189,2]
[378522876,1754895047097,-224.0,0.00018914,2]
[378522878,1754895047106,-224.0,0.00018931,2]
[378522880,1754895047115,-500.0,0.00018959,2]
[378522882,1754895047125,-342.60425664,0.0001896,2]
[378522884,1754895047134,-1000.0,0.00018999,2]
[378522885,1754895047143,-1000.0,0.00018999,2]
[378522887,1754895047153,-2840.78,0.00019,2]
[378522889,1754895047162,-1990.79895795,0.0001904,2]
[378522891,1754895047172,-150.0,0.00019053,2]
[378522893,1754895047181,-500.0,0.00019053,2]
[378522895,1754895047190,-554.83777611,0.00019053,2]
[378522897,1754895047199,-500.0,0.00019053,2]
[378522899,1754895047208,-500.0,0.00019053,2]
[378522901,1754895047217,-150.0,0.00019053,2]
[378522903,1754895047227,-150.0,0.00019053,2]
[378522905,1754895047236,-150.0,0.00019053,2]
[378522907,1754895047245,-500.0,0.00019053,2]
[378522909,1754895047254,-500.0,0.00019053,2]
[378522911,1754895047263,-500.0,0.00019053,2]
[378522913,1754895047273,-500.0,0.00019053,2]
[378522915,1754895047282,-155.43047177,0.00019053,2]
[378522917,1754895047291,-500.0,0.00019053,2]
[378522919,1754895047300,-216.40163574,0.00019053,2]
[378522921,1754895047310,-500.0,0.00019053,2]
[378522923,1754895047319,-150.0,0.00019053,2]
[378522925,1754895047328,-500.0,0.00019053,2]
[378522927,1754895047337,-500.0,0.00019053,2]
[378522929,1754895047347,-500.0,0.00019053,2]
[378522931,1754895047355,-500.0,0.00019075,2]
[378522932,1754895047364,-150.0,0.00019086,2]
[378522933,1754895047373,-166.35018913,0.00019086,2]
[378522934,1754895047382,-500.0,0.00019086,2]
[378522935,1754895047391,-700.0,0.00019086,2]
[378522936,1754895047400,-865.0,0.00019086,2]
[378522937,1754895047409,-1000.0,0.00019091,2]
[378522938,1754895047418,-224.0,0.00019106,2]
[378522939,1754895047427,-500.0,0.00019109,2]
[378522940,1754895047436,-213.06158943,0.00019109,2]
[378522941,1754895047445,-150.0,0.00019109,2]
[378522942,1754895047454,-1076.0,0.00019109,2]
[378522944,1754895047463,-500.0,0.00019109,2]
[378522946,1754895047472,-500.0,0.00019109,2]
[378522948,1754895047481,-500.0,0.00019156,2]
[378522950,1754895047491,-500.0,0.00019156,2]
[378522952,1754895047499,-500.0,0.00019156,2]
[378522954,1754895047508,-450.40606501,0.00019156,2]
[378522956,1754895047517,-600.0,0.0001917,2]
[378522958,1754895047527,-180.42,0.00019174,2]
[378522960,1754895047536,-3808.45,0.00019178,2]
[378522962,1754895047545,-224.0,0.0001923,2]
[378522964,1754895047555,-224.0,0.00019236,2]
[378522966,1754895047564,-150.0,0.00019327,2]
[378522968,1754895047573,-500.0,0.00019327,2]
[378522970,1754895047582,-500.0,0.00019327,2]
[378522972,1754895047591,-500.0,0.00019327,2]
[378522974,1754895047600,-150.0,0.00019327,2]
[378522976,1754895047609,-254.53819805,0.00019327,2]
[378522978,1754895047618,-151.67522062,0.00019327,2]
[378522980,1754895047627,-500.0,0.00019327,2]
[378522982,1754895047636,-500.0,0.00019327,2]
[378522984,1754895047645,-500.0,0.00019327,2]
[378522985,1754895047654,-178.34804788,0.00019327,2]
[378522987,1754895047663,-608.57502187,0.00019327,2]
[378522989,1754895047673,-500.0,0.00019327,2]
[378522992,1754895047682,-173.67624752,0.00019327,2]
[378522994,1754895047691,-500.0,0.00019327,2]
[378522996,1754895047700,-419.28902567,0.00019327,2]
[378522998,1754895047709,-258.67675173,0.00019327,2]
[378522999,1754895047718,-224.0,0.00019341,2]
[378523001,1754895047728,-188.96552601,0.0001936,2]
[378523003,1754895047737,-500.0,0.0001936,2]
[378523006,1754895047746,-700.0,0.0001936,2]
[378523007,1754895047755,-865.0,0.0001936,2]
[378523009,1754895047765,-600.0,0.00019374,2]
[378523011,1754895047774,-350.9,0.00019374,2]
[378523014,1754895047783,-224.0,0.00019383,2]
[378523015,1754895047793,-500.0,0.00019383,2]
[378523017,1754895047802,-150.0,0.00019383,2]
[378523020,1754895047811,-1076.0,0.00019383,2]
[378523021,1754895047820,-500.0,0.00019383,2]
[378523023,1754895047829,-500.0,0.00019383,2]
[378523025,1754895047839,-224.0,0.00019477,2]
[378523027,1754895047848,-1990.79895795,0.00019483,2]
[378523029,1754895047857,-196.219353,0.000195,2]
[378523031,1754895047866,-501.34567089,0.000195,2]
[378523032,1754895047875,-184.0,0.00019507,3]
[378523034,1754895047886,-207.83661963,0.00019601,2]
[378523035,1754895047896,-500.0,0.00019601,2]
[378523037,1754895047906,-302.00561304,0.00019601,2]
[378523039,1754895047914,-500.0,0.00019601,2]
[378523040,1754895047923,-150.0,0.00019601,2]
[378523042,1754895047933,-456.3569435,0.00019601,2]
[378523044,1754895047942,-500.0,0.00019601,2]
[378523045,1754895047952,-500.0,0.00019601,2]
[378523046,1754895047961,-500.0,0.00019601,2]
[378523047,1754895047970,-357.23718148,0.00019601,2]
[378523048,1754895047979,-1000.0,0.00019623,2]
[378523049,1754895047988,-224.0,0.00019623,2]
[378523050,1754895047997,-500.0,0.00019634,2]
[378523051,1754895048007,-500.0,0.00019634,2]
[378523052,1754895048016,-700.0,0.00019634,2]
[378523054,1754895048028,-865.0,0.00019634,2]
[378523055,1754895048037,-910.20093305,0.00019639,2]
[378523056,1754895048046,-224.0,0.00019648,2]
[378523057,1754895048056,-500.0,0.00019657,2]
[378523058,1754895048067,-208.21823086,0.00019657,2]
[378523059,1754895048076,-1076.0,0.00019657,2]
[378523060,1754895048086,-500.0,0.00019657,2]
[378523061,1754895048095,-500.0,0.00019657,2]
[378523062,1754895048105,-224.0,0.00019667,2]
[378523063,1754895048115,-224.0,0.00019699,2]
[378523065,1754895048124,-701.61764773,0.00019704,2]
[378523066,1754895048134,-504.29631946,0.00019704,2]
[378523067,1754895048144,-798.5893574,0.00019704,2]
[378523068,1754895048153,-183.35,0.00019789,2]
[378523069,1754895048163,-183.35,0.00019799,2]